bitfinex/quotes_SOLUSD_20250624
["timestamp","ask_amount","ask_price","bid_price","bid_amount"]
[1750791085873,0.69381808,144.13,144.11,6.3575]
[1750791087885,2.42836328,144.13,144.09,1.5933]
[1750791088276,0.69381808,144.13,144.09,1.5933]
[1750791089899,1.73453596,144.14,144.09,1.5933]
[1750791091703,26.0,144.13,144.09,1.5933]
[1750791092077,0.69386622,144.12,144.09,1.5933]
[1750791095296,2.4278712,144.16,144.09,1.5933]
[1750791096210,0.69367369,144.16,144.1,26.0]
[1750791096524,0.69367369,144.16,144.11,6.1598]
[1750791097520,0.69367369,144.16,144.11,13.09893821]
[1750791097828,0.69367369,144.16,144.11,6.1598]
[1750791104115,6.97364872,144.17,144.11,13.09880817]
[1750791104315,6.28,144.17,144.11,39.09880817]
[1750791104618,6.9736401,144.17,144.11,6.1598]
[1750791104924,8.70770405,144.17,144.11,6.1598]
[1750791106321,8.70770405,144.17,144.11,13.09883859]
[1750791106504,8.70770405,144.17,144.11,6.1598]
[1750791107115,8.70770405,144.17,144.11,13.09881949]
[1750791107317,6.9736401,144.17,144.11,13.09881949]
[1750791111725,6.9736401,144.17,144.12,26.0]
[1750791111927,0.69349307,144.2,144.14,18.64964886]
[1750791112302,0.6933851,144.22,144.14,18.64964886]
[1750791112925,0.6933851,144.22,144.16,18.64964886]
[1750791113815,6.9333542,144.23,144.17,6.9362558]
[1750791114330,6.24,144.23,144.18,20.23724886]
[1750791115243,0.69320546,144.26,144.2,25.13864886]
[1750791115433,6.93316225,144.27,144.2,25.13864886]
[1750791115605,0.69316225,144.27,144.2,25.13864886]
[1750791115907,0.69309675,144.28,144.21,6.93433187]
[1750791116612,26.69309675,144.28,144.21,6.93433187]
[1750791117057,26.69309675,144.28,144.2,32.07329157]
[1750791117225,28.42583864,144.28,144.2,6.489]
[1750791120204,28.42583864,144.28,144.2,13.42370029]
[1750791120405,0.69309675,144.28,144.23,27.5174]
[1750791120625,0.69300069,144.3,144.24,18.64964886]
[1750791120803,0.69300069,144.3,144.23,27.5174]
[1750791121409,0.69300069,144.3,144.23,34.45076533]
[1750791123112,0.69300069,144.3,144.23,39.93814933]
[1750791126033,0.69300069,144.3,144.24,18.64964886]
[1750791126236,0.69297405,144.31,144.26,18.64964886]
[1750791126415,0.69297405,144.31,144.25,6.1419]
[1750791127813,0.69297405,144.31,144.25,13.07414591]
[1750791128208,6.24,144.32,144.26,18.64964886]
[1750791128426,6.24,144.32,144.28,18.64964886]
[1750791128813,0.6928274,144.34,144.28,18.64964886]
[1750791129939,1.73190765,144.35,144.28,18.64964886]
[1750791129940,2.4246683,144.35,144.28,18.64964886]
[1750791132128,2.4246683,144.35,144.27,1.5114]
[1750791133234,2.4246683,144.35,144.27,8.4427997]
[1750791133730,2.4246683,144.35,144.27,1.5114]
[1750791134736,2.4246683,144.35,144.27,1.5114]
[1750791137716,18.64964886,144.34,144.25,6.1419]
[1750791137918,47.20964886,144.34,144.25,6.1419]
[1750791139362,2.42499825,144.33,144.25,24.79154886]
[1750791139522,0.69285664,144.33,144.26,18.64964886]
[1750791140632,2.42468422,144.35,144.26,25.58109933]
[1750791141044,2.42468422,144.35,144.28,18.64964886]
[1750791141835,2.42468422,144.35,144.27,1.5761]
[1750791142139,26.0,144.34,144.27,1.5761]
[1750791143755,26.0,144.34,144.25,6.1419]
[1750791143940,2.42499825,144.33,144.25,6.1419]
[1750791146657,2.42499825,144.33,144.26,18.64964886]
[1750791147030,0.69285664,144.33,144.26,18.64964886]
[1750791147932,0.69280864,144.34,144.27,6.93144797]
[1750791148848,2.42483025,144.34,144.27,6.93144797]
[1750791149052,2.42483025,144.34,144.26,25.58134947]
[1750791151760,0.69280864,144.34,144.26,25.58134947]
[1750791152455,0.69280864,144.34,144.26,26.27424009]
[1750791153158,0.69280864,144.34,144.26,43.60406124]
[1750791153861,0.69278226,144.35,144.28,18.64964886]
[1750791155538,0.69278226,144.35,144.28,25.58014311]
[1750791156861,2.42460377,144.36,144.28,25.58014311]
[1750791158383,0.69280864,144.34,144.28,25.58014311]
[1750791159684,2.42460377,144.36,144.28,25.58014311]
[1750791159862,5.16131032,144.35,144.26,18.64964886]
[1750791160079,5.16131032,144.34,144.26,44.64964886]
[1750791160252,5.16131032,144.33,144.26,44.64964886]
[1750791160454,8.75602978,144.36,144.26,44.64964886]
[1750791160656,5.16467518,144.35,144.26,44.64964886]
[1750791160965,5.16467518,144.34,144.26,44.64964886]
[1750791161156,5.16467518,144.33,144.26,44.64964886]
[1750791161358,5.16467518,144.32,144.26,44.64964886]
[1750791161567,12.21959309,144.36,144.26,44.64964886]
[1750791161772,2.42483025,144.34,144.26,44.64964886]
[1750791162088,5.16541289,144.33,144.26,44.64964886]
[1750791162273,5.16541289,144.32,144.26,44.64964886]
[1750791162453,2.42483025,144.34,144.26,44.64964886]
[1750791162652,5.16660773,144.33,144.26,44.64964886]
[1750791162869,5.16660773,144.32,144.26,51.58154459]
[1750791163058,2.42483025,144.34,144.26,51.58154459]
[1750791163260,5.1676092,144.33,144.26,51.58154459]
[1750791163464,5.1676092,144.32,144.26,51.58154459]
[1750791163652,2.42483025,144.34,144.26,51.58154459]
[1750791163854,0.69290465,144.32,144.26,51.58154459]
[1750791165456,1.73202161,144.34,144.26,51.58154459]
[1750791165756,5.17207449,144.33,144.26,51.58154459]
[1750791165962,5.17207449,144.32,144.26,51.58154459]
[1750791166156,1.73202161,144.34,144.26,51.58154459]
[1750791166357,5.17231844,144.33,144.26,51.58154459]
[1750791166557,1.73202161,144.34,144.26,51.58154459]
[1750791166769,5.17313316,144.33,144.26,51.58154459]
[1750791166965,1.73202161,144.34,144.26,51.58154459]
[1750791167162,5.17329171,144.33,144.26,51.58154459]
[1750791167367,1.73202161,144.34,144.26,51.58154459]
[1750791167656,5.17340627,144.33,144.26,51.58154459]
[1750791167876,2.42449431,144.36,144.28,18.64964886]
[1750791168065,5.17356297,144.35,144.28,18.64964886]
[1750791168265,2.42449431,144.36,144.28,18.64964886]
[1750791168464,5.17421259,144.35,144.28,18.64964886]
[1750791168662,2.42449431,144.36,144.28,18.64964886]
[1750791168885,5.17548402,144.35,144.28,18.64964886]
[1750791169079,2.42449431,144.36,144.28,18.64964886]
[1750791169278,5.17607424,144.35,144.28,18.64964886]
[1750791169610,2.42449431,144.36,144.28,18.64964886]
[1750791169877,0.69280864,144.34,144.28,25.58028995]
[1750791170876,2.42449431,144.36,144.28,25.58028995]
[1750791171077,5.17578356,144.35,144.28,25.58028995]
[1750791171386,2.42449431,144.36,144.27,6.93121124]
[1750791171562,5.17468793,144.35,144.27,6.93121124]
[1750791171758,2.42449431,144.36,144.27,6.93121124]
[1750791171962,5.17494055,144.35,144.27,6.93121124]
[1750791172182,2.42449431,144.36,144.27,6.93121124]
[1750791172387,5.17497994,144.35,144.27,6.93121124]
[1750791172559,0.69285664,144.33,144.27,6.93121124]
[1750791173282,0.69285664,144.33,144.28,18.64964886]
[1750791174373,0.69280864,144.34,144.29,6.93048721]
[1750791175784,2.42449431,144.36,144.29,6.93048721]
[1750791175985,5.17490949,144.35,144.29,6.93048721]
[1750791176286,2.42449431,144.36,144.29,6.93048721]
[1750791176587,5.17467333,144.35,144.29,6.93048721]
[1750791176885,2.42449431,144.36,144.29,6.93048721]
[1750791177106,0.69280864,144.34,144.29,6.93048721]
[1750791178462,2.42449431,144.36,144.29,6.93048721]
[1750791178688,5.17280627,144.35,144.29,6.93048721]
[1750791178986,2.42449431,144.36,144.29,6.93048721]
[1750791179183,5.17276004,144.35,144.29,6.93048721]
[1750791179372,2.42449431,144.36,144.29,6.93048721]
[1750791180197,2.42449431,144.36,144.28,25.58051041]
[1750791180493,5.17247843,144.35,144.28,25.58051041]
[1750791180675,2.42449431,144.36,144.27,25.58085027]
[1750791180859,5.17285004,144.35,144.27,25.58085027]
[1750791181065,5.17285004,144.34,144.27,25.58085027]
[1750791181280,2.42449431,144.36,144.27,25.58085027]
[1750791181569,5.17288656,144.35,144.27,25.58085027]
[1750791181871,0.69283098,144.34,144.27,25.58085027]
[1750791183189,2.42449431,144.36,144.27,25.58085027]
[1750791183392,5.17238301,144.35,144.27,25.58085027]
[1750791183594,5.1720114,144.34,144.27,25.58085027]
[1750791183797,2.42449431,144.36,144.27,25.58085027]
[1750791183969,5.17196906,144.35,144.27,25.58085027]
[1750791184288,2.42449431,144.36,144.27,25.58085027]
[1750791184289,5.17196906,144.34,144.27,18.64964886]
[1750791184471,5.17196906,144.33,144.27,18.64964886]
[1750791184682,2.42449431,144.36,144.27,18.64964886]
[1750791184874,5.1717486,144.35,144.27,18.64964886]
[1750791185073,5.1717486,144.34,144.27,18.64964886]
[1750791185287,0.69290465,144.32,144.27,18.64964886]
[1750791187072,0.69290465,144.32,144.27,25.5810962]
[1750791187390,5.17298099,144.33,144.29,18.64964886]
[1750791187578,0.69287286,144.33,144.29,18.64964886]
[1750791188189,6.33142601,144.42,144.34,1.5241]
[1750791188391,1.1998899,144.43,144.34,1.5241]
[1750791188392,1.1998899,144.43,144.39,18.64964886]
[1750791189190,1.1998899,144.43,144.39,24.15393322]
[1750791189496,1.1998899,144.43,144.39,31.07948084]
[1750791189885,1.1998899,144.43,144.39,25.57519648]
[1750791190099,1.89229163,144.43,144.39,18.64964886]
[1750791191301,1.1998899,144.43,144.39,25.57522081]
[1750791192493,1.89226739,144.43,144.39,18.64964886]
[1750791192682,5.26855118,144.52,144.42,44.64964886]
[1750791192882,1.72995118,144.52,144.43,18.64964886]
[1750791193619,0.69204152,144.5,144.43,18.64964886]
[1750791193908,2.42214532,144.5,144.44,26.0]
[1750791194475,0.69204152,144.5,144.44,26.0]
[1750791195488,0.69204152,144.5,144.44,32.92321923]
[1750791195685,0.69204152,144.5,144.44,26.0]
[1750791196875,7.82752379,144.55,144.45,26.45524886]
[1750791197080,0.69181922,144.55,144.49,18.64964886]
[1750791197497,1.7292964,144.57,144.49,18.64964886]
[1750791197696,0.69165859,144.58,144.49,25.57032765]
[1750791199194,2.42080508,144.58,144.49,18.64964886]
[1750791200280,18.64964886,144.57,144.45,7.8056]
[1750791200478,26.0,144.54,144.45,7.8056]
[1750791200703,6.2,144.53,144.45,7.8056]
[1750791201298,0.69194575,144.52,144.45,7.8056]
[1750791201485,0.69194575,144.52,144.45,14.72824227]
[1750791201904,0.69194575,144.52,144.45,7.8056]
[1750791202926,2.42181012,144.52,144.45,7.8056]
[1750791203996,26.0,144.5,144.45,7.8056]
[1750791206318,0.69208941,144.49,144.45,7.8056]
[1750791211608,0.69208941,144.49,144.41,26.0]
[1750791211609,18.64964886,144.48,144.41,7.7148]
[1750791211918,6.2,144.47,144.41,1.6585]
[1750791213518,18.64964886,144.46,144.41,1.6585]
[1750791213709,2.42298372,144.45,144.37,7.7148]
[1750791214161,18.64964886,144.44,144.37,7.7148]
[1750791214806,28.54,144.43,144.37,7.7148]
[1750791215002,26.0,144.42,144.37,7.7148]
[1750791215202,6.22,144.41,144.37,7.7148]
[1750791216343,0.69252077,144.4,144.37,7.7148]
[1750791219252,2.4238227,144.4,144.32,26.0]
[1750791219467,2.4238227,144.4,144.33,7.6099]
[1750791224670,26.0,144.38,144.33,7.6099]
[1750791225324,0.69266468,144.37,144.33,7.6099]
[1750791228170,0.69256873,144.39,144.34,18.64964886]
[1750791228963,0.69247282,144.41,144.36,18.64964886]
[1750791229171,0.69247282,144.41,144.37,6.395]
[1750791229352,6.22,144.43,144.37,6.395]
[1750791229353,0.69243992,144.42,144.37,6.395]
[1750791229550,0.69243992,144.42,144.38,1.5878]
[1750791231443,0.69243992,144.42,144.38,8.51389706]
[1750791231644,6.9123996,144.43,144.38,8.51389706]
[1750791231856,6.9123996,144.43,144.38,1.5878]
[1750791232855,6.9123996,144.43,144.38,8.51384228]
[1750791234447,6.9123996,144.43,144.39,18.64964886]
[1750791235241,0.69230322,144.45,144.4,6.3712]
[1750791236268,2.4226647,144.47,144.4,13.29637229]
[1750791237458,2.4226647,144.47,144.4,6.3712]
[1750791237858,2.4226647,144.47,144.4,13.29640763]
[1750791240282,2.4226647,144.47,144.4,6.3712]
[1750791241077,2.4226647,144.47,144.4,13.29637222]
[1750791241282,0.69218522,144.47,144.41,1.6284]
[1750791242685,0.69218522,144.47,144.42,24.88814886]
[1750791243558,0.69218522,144.47,144.42,31.81213549]
[1750791245782,6.22,144.48,144.43,1.5714]
[1750791245783,6.91215746,144.48,144.43,1.5714]
[1750791247063,6.91215746,144.48,144.43,8.49505149]
[1750791247657,6.22,144.48,144.44,18.64964886]
[1750791247865,6.22,144.48,144.44,24.23572293]
[1750791248763,6.91213978,144.48,144.44,24.23572293]
[1750791248963,6.91213978,144.48,144.43,1.5714]
[1750791249190,6.91213978,144.48,144.43,8.49516874]
[1750791249488,6.91213978,144.48,144.43,13.96355401]
[1750791250089,6.91213978,144.48,144.43,8.49516874]
[1750791250597,6.91213978,144.48,144.43,1.5714]
[1750791252291,6.91213978,144.48,144.43,8.49503139]
[1750791253494,6.22,144.48,144.44,25.5728281]
[1750791253790,0.69211132,144.49,144.45,6.4807]
[1750791254783,0.69204152,144.5,144.45,6.4807]
[1750791256370,2.42214532,144.5,144.45,6.4807]
[1750791257898,44.64964886,144.49,144.43,1.5714]
[1750791258072,26.0,144.46,144.43,1.5714]
[1750791258403,0.69228106,144.45,144.41,6.6258]
[1750791258694,2.42298372,144.45,144.39,1.5816]
[1750791260294,0.69228106,144.45,144.39,8.50720379]
[1750791260884,0.69228106,144.45,144.39,1.5816]
[1750791261676,2.42298372,144.45,144.39,1.5816]
[1750791262880,18.64964886,144.44,144.37,6.2124]
[1750791263193,18.64964886,144.44,144.35,1.5286]
[1750791264803,18.64964886,144.44,144.33,6.5108]
[1750791264804,18.64964886,144.42,144.33,6.5108]
[1750791265799,26.0,144.39,144.31,1.5978]
[1750791265985,32.2,144.39,144.31,1.5978]
[1750791266999,2.42415846,144.38,144.31,1.5978]
[1750791267380,18.64964886,144.37,144.29,6.2389]
[1750791267698,26.0,144.34,144.29,6.2389]
[1750791269088,2.42499825,144.33,144.29,6.2389]
[1750791269976,0.69285664,144.33,144.29,6.2389]
[1750791273006,2.42499825,144.33,144.29,6.2389]
[1750791273213,2.42499825,144.33,144.27,1.5271]
[1750791273401,8.62499825,144.33,144.27,1.5271]
[1750791275615,8.62499825,144.33,144.25,6.1422]
[1750791278422,8.62499825,144.33,144.25,13.07460867]
[1750791279001,34.62499825,144.33,144.25,6.1422]
[1750791280630,32.89285664,144.33,144.26,18.64964886]
[1750791280935,6.89285664,144.33,144.26,18.64964886]
[1750791281623,6.89285664,144.33,144.26,25.58127713]
[1750791282238,8.62499825,144.33,144.26,18.64964886]
[1750791283250,12.08928148,144.33,144.25,6.1422]
[1750791283447,18.64964886,144.32,144.21,15.84157335]
[1750791283606,5.96393434,144.31,144.21,15.84157335]
[1750791283950,28.62,144.3,144.21,22.77581288]
[1750791284108,28.62,144.3,144.22,18.64964886]
[1750791285128,0.69304872,144.29,144.22,25.58334779]
[1750791286526,6.2,144.32,144.24,18.64964886]
[1750791286727,6.89291312,144.32,144.24,18.64964886]
[1750791287225,6.89291312,144.32,144.26,18.64964886]
[1750791290132,8.62517476,144.32,144.23,0.69307486]
[1750791290334,8.62517476,144.32,144.24,26.0]
[1750791290945,8.62517476,144.32,144.25,18.64964886]
[1750791291933,8.62517476,144.32,144.24,18.64964886]
[1750791292142,8.62517476,144.32,144.23,18.64964886]
[1750791292313,8.62517476,144.32,144.22,18.64964886]
[1750791293711,12.08969804,144.32,144.22,18.64964886]
[1750791294511,18.64964886,144.31,144.21,7.84927335]
[1750791294712,18.64964886,144.31,144.21,14.78355845]
[1750791295423,2.42550242,144.3,144.21,7.84927335]
[1750791296331,26.0,144.27,144.21,7.84927335]
[1750791297415,26.0,144.23,144.14,1.568]
[1750791297824,26.0,144.22,144.14,1.568]
[1750791298243,26.0,144.22,144.13,32.0192]
[1750791298821,26.0,144.22,144.13,6.0192]
[1750791299034,18.64964886,144.21,144.11,1.568]
[1750791299219,6.2,144.2,144.11,1.568]
[1750791299635,2.42735279,144.19,144.11,1.568]
[1750791300265,2.42735279,144.19,144.09,18.64964886]
[1750791300539,18.64964886,144.18,144.08,14.02255338]
[1750791301113,5.89499964,144.19,144.08,8.00335338]
[1750791301114,18.64964886,144.16,144.08,8.00335338]
[1750791301538,18.64964886,144.14,144.08,8.00335338]
[1750791301744,18.64964886,144.12,144.08,8.00335338]
[1750791301930,18.64964886,144.12,144.03,6.016]
[1750791302128,18.64964886,144.12,144.02,27.5013]
[1750791302437,18.64964886,144.12,144.02,1.5013]
[1750791302823,6.2,144.13,144.02,34.44470508]
[1750791303029,6.2,144.13,144.03,18.64964886]
[1750791303960,0.69386622,144.12,144.03,18.64964886]
[1750791304466,26.0,144.1,144.02,34.44470508]
[1750791304772,26.0,144.1,144.03,18.64964886]
[1750791305117,0.69401068,144.09,144.03,18.64964886]
[1750791305626,0.69401068,144.09,144.03,25.59261605]
[1750791308830,0.69401068,144.09,144.03,18.64964886]
[1750791309229,0.69401068,144.09,144.02,26.0]
[1750791309433,0.69401068,144.09,143.99,40.68473333]
[1750791309938,0.69401068,144.09,143.99,14.68473333]
[1750791310759,0.69401068,144.09,144.01,6.94396222]
[1750791311340,0.69401068,144.09,144.02,18.64964886]
[1750791312870,18.64964886,144.1,144.0,32.94425038]
[1750791313066,18.64964886,144.1,143.99,8.33333333]
[1750791314025,2.42920599,144.08,143.99,15.2780991]
[1750791314362,6.32,144.07,143.99,15.2780991]
[1750791314972,9.8586,144.07,143.99,8.33333333]
[1750791315943,38.6386,144.07,143.99,8.33333333]
[1750791316178,2.4297119,144.05,143.99,8.33333333]
[1750791318295,1.7355085,144.05,143.99,8.33333333]
[1750791319671,18.64964886,144.04,143.99,8.33333333]
[1750791320471,0.69415521,144.06,143.99,15.27825627]
[1750791320677,0.69415521,144.06,143.99,8.33333333]
[1750791320874,0.69415521,144.06,143.99,15.27822155]
[1750791321388,26.69415521,144.06,143.99,15.27822155]
[1750791321813,1.7350359,144.09,144.0,18.64964886]
[1750791322106,18.64964886,144.07,143.99,8.33333333]
[1750791322300,26.0,144.02,143.99,8.33333333]
[1750791322470,32.34,144.02,143.99,8.33333333]
[1750791323405,0.69439622,144.01,143.99,8.33333333]
[1750791329098,7.03436479,144.02,143.99,8.33333333]
[1750791333917,8.7702348,144.02,143.99,8.33333333]
[1750791340721,34.7702348,144.02,143.99,8.33333333]
[1750791341290,44.64964886,144.0,143.99,8.33333333]
[1750791341722,73.46964886,144.0,143.99,8.33333333]
[1750791342807,74.1640933,144.0,143.99,8.33333333]
[1750791353006,82.8355431,144.0,143.99,8.33333333]
[1750791353327,18.64964886,143.97,143.89,6.115]
[1750791353505,18.64964886,143.95,143.89,6.115]
[1750791353713,26.0,143.91,143.89,6.115]
[1750791354129,0.69492703,143.9,143.89,6.115]
[1750791354844,54.8,143.94,143.89,6.115]
[1750791355012,0.69480122,143.93,143.89,6.115]
[1750791355213,6.38,143.96,143.89,13.0646655]
[1750791355541,0.69468565,143.95,143.89,6.115]
[1750791357634,0.69468565,143.95,143.89,13.06449386]
[1750791362039,0.69468565,143.95,143.9,1.5107]
[1750791362230,2.43139978,143.95,143.9,1.5107]
[1750791364885,18.64964886,143.94,143.86,1.5562]
[1750791365161,18.64964886,143.92,143.86,1.5562]
[1750791366138,26.0,143.91,143.86,1.5562]
[1750791366321,18.64964886,143.92,143.86,1.5562]
[1750791366322,32.3,143.9,143.86,1.5562]
[1750791366762,2.43241364,143.89,143.86,1.5562]
[1750791371064,2.43241364,143.89,143.85,6.1955]
[1750791371243,34.64729028,143.89,143.82,8.1038]
[1750791371570,18.64964886,143.88,143.82,8.1038]
[1750791373175,2.43275177,143.87,143.82,8.1038]
[1750791374240,18.64964886,143.86,143.79,1.5664]
[1750791374445,28.74,143.85,143.79,1.5664]
[1750791374664,6.3,143.84,143.79,1.5664]
[1750791375041,0.69526524,143.83,143.79,1.5664]
[1750791375764,2.43342834,143.83,143.79,1.5664]
[1750791377763,2.43342834,143.83,143.75,1.6141]
[1750791378468,2.43342834,143.83,143.75,7.24558754]
[1750791379364,2.43342834,143.83,143.75,14.20205512]
[1750791380870,2.43342834,143.83,143.75,7.24558754]
[1750791382172,2.43342834,143.83,143.75,14.20199838]
[1750791382875,2.43342834,143.83,143.76,18.64964886]
[1750791383678,0.69526524,143.83,143.76,18.64964886]
[1750791384295,1.73769979,143.87,143.8,8.2583]
[1750791384582,6.32,143.86,143.8,8.2583]
[1750791385584,0.69516857,143.85,143.8,8.2583]
[1750791386085,2.43309001,143.85,143.8,8.2583]
[1750791391811,2.43309001,143.85,143.77,27.5752]
[1750791391974,5.9089329,143.85,143.77,1.5752]
[1750791396500,31.9089329,143.85,143.77,1.5752]
[1750791398001,28.43309001,143.85,143.77,1.5752]
[1750791398204,2.43309001,143.85,143.78,18.64964886]
[1750791398498,0.69516857,143.85,143.78,18.64964886]
[1750791399500,0.69516857,143.85,143.78,25.6043636]
[1750791400393,0.69516857,143.85,143.81,26.0]
[1750791401508,6.32,143.86,143.81,18.64964886]
[1750791401716,7.01512062,143.86,143.82,7.5817]
[1750791402284,8.75292125,143.86,143.78,13.34164296]
[1750791402489,8.75292125,143.86,143.79,46.23374886]
[1750791403308,8.75292125,143.86,143.79,53.18817548]
[1750791403791,8.75292125,143.86,143.79,46.23374886]
[1750791403989,8.75292125,143.86,143.79,27.5841]
[1750791411385,8.75292125,143.86,143.79,34.53862053]
[1750791411704,8.75292125,143.86,143.8,18.64964886]
[1750791412415,7.01512062,143.86,143.81,6.95361935]
[1750791412595,7.01512062,143.86,143.8,25.60351815]
[1750791412999,8.75292125,143.86,143.8,18.64964886]
[1750791413316,8.75292125,143.86,143.79,27.5841]
[1750791416740,12.22852252,143.86,143.75,25.84300307]
[1750791416938,12.22852252,143.86,143.78,26.0]
[1750791417899,8.75292125,143.86,143.78,26.0]
[1750791418703,8.75292125,143.86,143.79,18.64964886]
[1750791418704,7.01512062,143.86,143.79,18.64964886]
[1750791418901,7.01512062,143.86,143.79,24.91534886]
[1750791419517,7.01512062,143.86,143.8,6.95410292]
[1750791420619,7.01512062,143.86,143.82,1.5357]
[1750791420620,6.32,143.86,143.82,1.5357]
[1750791421026,6.32,143.86,143.83,26.0]
[1750791421327,0.69494662,143.9,143.84,18.64964886]
[1750791421502,0.69494662,143.9,143.85,6.258]
[1750791421704,0.69494662,143.9,143.85,13.20927005]
[1750791422118,6.34,143.91,143.86,44.64964886]
[1750791423224,7.03489058,143.91,143.86,44.64964886]
[1750791423620,7.03489058,143.91,143.86,51.60071866]
[1750791424030,0.69489058,143.91,143.86,51.60071866]
[1750791424429,0.69489058,143.91,143.86,44.64964886]
[1750791424628,2.43208743,143.91,143.85,6.258]
[1750791424843,2.43208743,143.91,143.84,18.64964886]
[1750791425532,2.43208743,143.91,143.83,18.64964886]
[1750791425845,0.69483046,143.92,143.86,18.64964886]
[1750791426037,2.43190661,143.92,143.86,18.64964886]
[1750791428306,0.69483046,143.92,143.86,25.60077122]
[1750791434335,7.03480241,143.93,143.86,25.60077122]
[1750791435324,6.34,143.93,143.9,18.64964886]
[1750791437153,7.03478902,143.93,143.88,1.5454]
[1750791437327,7.03478902,143.93,143.9,26.0]
[1750791438863,6.34,143.93,143.9,26.0]
[1750791439154,6.34,143.93,143.91,18.64964886]
[1750791439362,6.36,143.98,143.91,18.64964886]
[1750791440760,6.36,143.98,143.91,24.10767781]
[1750791440947,0.69458915,143.97,143.91,31.05639301]
[1750791447434,7.05456409,143.98,143.91,31.05639301]
[1750791447636,7.05456409,143.98,143.94,26.0]
[1750791447836,6.36,143.98,143.95,18.64964886]
[1750791449464,6.36,143.98,143.95,25.59629439]
[1750791450167,6.36,143.98,143.95,18.64964886]
[1750791450544,7.0545544,143.98,143.95,18.64964886]
[1750791450742,7.0545544,143.98,143.94,27.5149]
[1750791451642,7.0545544,143.98,143.94,26.0]
[1750791451843,8.79090667,143.98,143.93,6.5362]
[1750791452045,8.79090667,143.98,143.92,44.64964886]
[1750791453852,8.79090667,143.98,143.92,51.59791818]
[1750791455857,8.79090667,143.98,143.92,44.64964886]
[1750791458672,7.0545544,143.98,143.92,51.59779217]
[1750791460875,7.0545544,143.98,143.92,44.64964886]
[1750791461076,7.0545544,143.98,143.91,1.5348]
[1750791461262,7.0545544,143.98,143.89,18.64964886]
[1750791461263,10.5931544,143.98,143.89,18.64964886]
[1750791461679,10.5931544,143.98,143.89,44.64964886]
[1750791461971,10.5931544,143.98,143.89,18.64964886]
[1750791462153,12.32950667,143.98,143.89,44.64964886]
[1750791462346,12.32950667,143.98,143.89,51.59932655]
[1750791462542,12.32950667,143.98,143.89,25.59932655]
[1750791462757,12.32950667,143.98,143.89,51.59932655]
[1750791463154,12.32950667,143.98,143.89,57.23974865]
[1750791467686,12.32950667,143.98,143.89,51.59932655]
[1750791467862,12.32950667,143.98,143.89,44.64964886]
[1750791468685,12.32950667,143.98,143.89,50.06997581]
[1750791469660,12.32950667,143.98,143.89,57.01961854]
[1750791471858,7.0545544,143.98,143.92,26.0]
[1750791472060,0.6945544,143.98,143.93,18.64964886]
[1750791477092,2.43090667,143.98,143.92,26.0]
[1750791477264,2.43090667,143.98,143.89,5.42032695]
[1750791477580,2.43090667,143.98,143.89,44.64964886]
[1750791479396,2.43090667,143.98,143.89,57.02297457]
[1750791481591,2.43090667,143.98,143.89,44.64964886]
[1750791482681,5.90361121,143.98,143.89,44.64964886]
[1750791483668,5.90361121,143.98,143.89,51.59937373]
[1750791484598,2.43090667,143.98,143.89,51.59937373]
[1750791484896,0.6945544,143.98,143.93,18.64964886]
[1750791485685,0.6945544,143.98,143.92,18.64964886]
[1750791488299,0.6945544,143.98,143.92,25.59786597]
[1750791492595,0.6945544,143.98,143.92,18.64964886]
[1750791494004,0.6945544,143.98,143.92,51.59792264]
[1750791494596,0.6945544,143.98,143.92,44.64964886]
[1750791496704,0.6945544,143.98,143.92,51.59781696]
[1750791502083,6.9745006,143.99,143.95,26.0]
[1750791502377,6.28,143.99,143.95,26.0]
[1750791503108,6.97449441,143.99,143.95,26.0]
[1750791505627,6.97449441,143.99,143.96,26.0]
[1750791506516,6.28,143.99,143.95,32.94682499]
[1750791507338,6.28,143.99,143.96,18.64964886]
[1750791508031,6.28,143.99,143.96,25.59601215]
[1750791508242,6.28,143.99,143.96,51.59601215]
[1750791511530,6.28,143.99,143.98,26.0]
[1750791511825,0.69440957,144.01,143.98,26.0]
[1750791512412,50.0,144.0,143.98,26.0]
[1750791512633,50.0,144.0,143.98,32.9453961]
[1750791512837,50.0,144.0,143.99,44.64964886]
[1750791513016,6.9542753,144.04,143.99,44.64964886]
[1750791513215,6.26,144.04,143.99,44.64964886]
[1750791513828,17.17474779,144.09,143.99,44.64964886]
[1750791514033,0.6940808,144.08,143.99,44.64964886]
[1750791514420,2.42922794,144.08,144.0,6.94444444]
[1750791514627,2.42922794,144.08,144.03,26.0]
[1750791516837,2.42922794,144.08,144.02,26.0]
[1750791517017,26.0,144.05,143.95,1.5045]
[1750791517334,26.0,144.05,143.96,44.64964886]